Workbook

Sheet Budget 2015
A2: POPULAR EDUCATION AND ACTION CENTRE
A4: BUDGET FOR NAVJAGRITI COLLECTIVE EDUCATIONAL PROGRAMME
A5: April 1, 2015 to March 31, 2016
G7: US $ 1 = INR 60
A9: S.No. | B9: BUDGET ITEMS | C9: Physical | D9: Unit | E9: No. of | F9: Unit | G9: Total | H9: Total | I9: Remarks
C10: Requirement | D10: Defination | E10: Unit | F10: Cost | G10: (in INR) | H10: (in US $) | J10: 2014 | K10: Increase | L10: % Increase
A11: A | B11: PROGRAMME COSTS
A12: 1 | B12: Educational Material | C12: 55 | D12: month | E12: 12 | F12: 50 | G12: =+C12*E12*F12 -> 33000 | H12: =+G12/60 -> 550 | I12: out of the 63 children; 55 are going to school and 08 are non-schooling | J12: 30600 | K12: =G12-J12 -> 2400 | L12: =((G12-J12)/J12)*100 -> 7.843137255 | M12: increase of 4 children
B13: (paper, pen, pencil, sharpner, eraser etc. for 63 children) | C13: 8 | D13: month | E13: 12 | F13: 30 | G13: =+C13*E13*F13 -> 2880 | H13: =+G13/60 -> 48 | J13: 4320 | K13: =G13-J13 -> -1440 | L13: =((G13-J13)/J13)*100 -> -33.33333333
A14: 2 | B14: Educational Trip | C14: 63 | D14: Trip | E14: 1 | F14: 650 | G14: =C14*E14*F14 -> 40950 | H14: =+G14/60 -> 682.5 | I14: the cost is more then estimated which will be either raise during the trip | J14: 66300 | K14: -25350 | L14: -38.23529412
B15: (travel, food, venue, stationery, etc. for 63 children & fee for resource person) | I15: or approach the concern institute to provide the staying & venue free of cost during the trip | K15: =G15-J15 -> 0
A16: 3 | B16: Educational Workshop | C16: 63 | D16: workshop | E16: 2 | F16: 350 | G16: =+C16*E16*F16 -> 44100 | H16: =+G16/60 -> 735 | I16: the cost is more then estimated which will be either raise during the trip | J16: 44100 | K16: 0 | L16: 0
B17: (travel, food, venue, stationery, etc. for 63 children & fee for resource person) | I17: or approach the concern institute to provide the staying & venue free of cost during the trip | K17: 0
A18: 4 | B18: Child Care Expenses | C18: 63 | D18: days | E18: 313 | F18: 17 | G18: =+C18*E18*F18 -> 335223 | H18: =+G18/60 -> 5587.05 | I18: out of 365 days; we have excluded the Sunday during the year | J18: 335223 | K18: 0 | L18: 0
B19: (food, medician,hair cutting,cloths, | K19: 0
B20: Shoses stching,washing,grocery etc.) | K20: 0
A21: 5 | B21: Transportation (School Van) | C21: 2 | D21: month | E21: 12 | F21: 6000 | G21: =+C21*E21*F21 -> 144000 | H21: =+G21/60 -> 2400 | I21: Charges for one school van from Smart Cube | J21: 72000 | K21: 72000 | L21: 100 | M21: two buses
A22: 6 | B22: Education Expenses (51 children) | K22: 0
B23: - School Fees | C23: 55 | D23: month | E23: 12 | F23: 275 | G23: =+C23*E23*F23 -> 181500 | H23: =+G23/60 -> 3025 | I23: local contribution from Smart Cube & Gigraj Kishory Lal Chaaritable Trust | J23: 168300 | K23: 13200 | L23: 7.843137255 | M23: increase of 4 children
B24: - School Uniform | C24: 55 | D24: year | E24: 1 | F24: 550 | G24: =+C24*E24*F24 -> 30250 | H24: =+G24/60 -> 504.1666667 | J24: 28050 | K24: 2200 | L24: 7.843137255 | M24: increase of 4 children
A25: 7 | B25: Staff Salaries & Honorarium | K25: 0
B26: - Coordinator | C26: 1 | D26: month | E26: 12 | F26: 7000 | G26: =+C26*E26*F26 -> 84000 | H26: =+G26/60 -> 1400 | J26: 78000 | K26: 6000 | L26: 7.692307692
B27: - Teacher (Full Time) | C27: 1 | D27: month | E27: 12 | F27: 9000 | G27: 108000 | H27: 1800 | J27: 102000 | K27: 6000 | L27: 5.882352941
B28: - Teacher ( Part Time) | C28: 2 | D28: month | E28: 12 | F28: 4000 | G28: 96000 | H28: 1600 | J28: 84000 | K28: 12000 | L28: 14.28571429
B29: - Teacher (Coaching Centre) | C29: 1 | D29: month | E29: 12 | F29: 3900 | G29: 46800 | H29: 780 | I29: local contribution from friend | J29: 46800 | K29: 0 | L29: 0
B30: - Field Teacher (Activities) | C30: 1 | D30: month | E30: 12 | F30: 2500 | G30: 30000 | H30: 500 | J30: 30000 | K30: 0 | L30: 0
B31: - Care-taker | C31: 1 | D31: month | E31: 12 | F31: 3500 | G31: 42000 | H31: 700 | J31: 42000 | K31: 0 | L31: 0
A32: B | B32: ADMINISTRATIVE COSTS | K32: 0
A33: 1 | B33: Office Coordinator/Accounts | C33: 1 | D33: lumpsum | E33: 1 | F33: 20000 | G33: =+C33*E33*F33 -> 20000 | H33: =+G33/60 -> 333.3333333 | J33: 20000 | K33: 0 | L33: 0
A34: 2 | B34: Office Rent & Electricity | C34: 1 | D34: month | E34: 12 | F34: 16500 | G34: =+C34*E34*F34 -> 198000 | H34: =+G34/60 -> 3300 | J34: 198000 | K34: 0 | L34: 0
A35: 3 | B35: Local Travel | C35: 1 | D35: month | E35: 12 | F35: 3000 | G35: =+C35*E35*F35 -> 36000 | H35: =+G35/60 -> 600 | J35: 30000 | K35: 6000 | L35: 20
A36: 4 | B36: Communication & Postage | C36: 1 | D36: month | E36: 12 | F36: 2500 | G36: =+C36*E36*F36 -> 30000 | H36: =+G36/60 -> 500 | I36: local contribution from Smart Cube & Gigraj Kishory Lal Chaaritable Trust | J36: 30000 | K36: 0 | L36: 0
B37: (phone, internet, fax, mobile, postal) | K37: 0
A38: 5 | B38: Printing & Stationery | C38: 1 | D38: month | E38: 12 | F38: 2000 | G38: =+C38*E38*F38 -> 24000 | H38: =+G38/60 -> 400 | I38: local contribution from Smart Cube & Gigraj Kishory Lal Chaaritable Trust | J38: 24000 | K38: 0 | L38: 0
B39: (pen, pencil, writing pad, stapler, pin paper etc.) | K39: 0
A40: 6 | B40: Maintenance | C40: 1 | D40: month | E40: 12 | F40: 1000 | G40: 12000 | H40: 200 | K40: =G40-J40 -> 12000
B41: Repairing,painting,electrical
B42: replacement etc.
B43: G. TOTAL | G43: =SUM(G12:G42) -> 1538703 | H43: =SUM(H11:H42) -> 25645.05 | J43: 1433693 | L43: 7.324441146
B44: Local Contribution From:
B45: - Smart Cube and Gigraj Kishory Lal Charitable Trust, New Delhi | G45: 2015 | I45: 2014 | J45: Increase
B46: ( item no. A5(50%) A6 and B4, B5) | G46: =G23+G24+G36+G38+72000 -> 337750 | J46: USD | K46: %
B47: - From Friend { item no. A7-teacher (coaching centre)} | G47: =+G29 -> 46800
D48: Total Contribution from other sponsors | G48: =SUM(G46:G47) -> 384550 | H48: =+G48/60 -> 6409.166667
C49: Net amount requested from Asha | G49: =G43-G48 -> 1154153 | H49: =+H43-H48 -> 19235.88333 | I49: 1136543 | J49: =I49/60 -> 18942.38333 | K49: =((G49-I49)/I49)*100 -> 1.549435437

Sheet Info on kids
A1: List of students(2-6 years) | F1: List of students(7- 12years)
A2: 1.Jahid | B2: 2 years | C2: M | D2: no school | F2: 1.Dolly | G2: 7 years | H2: F | I2: c-3
A3: 2.Sahid | B3: 3 years | C3: M | D3: no school | F3: 2.Abdul Rahman | G3: 7 years | H3: M | I3: c-3
A4: 3.Faisal | B4: 3 years | C4: M | D4: no school | F4: 3.Arman | G4: 7 years | H4: M | I4: c-3
A5: 4.Khushi | B5: 3 years | C5: F | D5: no school | F5: 4.Sahbaz | G5: 7 years | H5: M | I5: c -3
A6: 5.Alkama | B6: 3 years | C6: M | D6: no school | F6: 5.Priyanka | G6: 7 years | H6: F | I6: c-3
A7: 6.Nayan | B7: 4 years | C7: M | D7: no school | F7: 6.Rituparna | G7: 8 years | H7: F | I7: c-4
A8: 7.Rehan | B8: 4 years | C8: M | D8: no school | F8: 7.Rani-2 | G8: 8 years | H8: F | I8: c-3
A9: 8.Aanu | B9: 4 years | C9: F | D9: no school | F9: 8.Monu | G9: 8 years | H9: M | I9: c-3
A10: 9.Anjali | B10: 4 years | C10: F | D10: c - 1 | F10: 9.Prince | G10: 8 years | H10: M | I10: no school
A11: 10.Palak | B11: 5 years | C11: F | D11: c - kg | F11: 10.Saddam | G11: 8 years | H11: M | I11: c-3
A12: 11.Arman | B12: 5 years | C12: M | D12: no school | F12: 11.Dilip | G12: 8 years | H12: M | I12: c-3
A13: 12.Rehan | B13: 5 years | C13: M | D13: C-kg | F13: 12.Naaz | G13: 9 years | H13: F | I13: c-4
A14: 13.Khusbu | B14: 5 years | C14: F | D14: C-kg | F14: 13.Shabnam | G14: 9 years | H14: F | I14: no school
A15: 14.Omi | B15: 5 years | C15: M | D15: c - kg | F15: 14.Ruksar | G15: 9 years | H15: F | I15: c-5
A16: 15.Barun | B16: 5 years | C16: M | D16: c - kg | F16: 15.Aadil | G16: 9 years | H16: M | I16: c-3
A17: 16.Nitish | B17: 6 years | C17: M | D17: c - 1 | F17: 16.Ladli | G17: 9 years | H17: F | I17: c-3
A18: 17.Manish(New) | B18: 6 years | C18: M | D18: no school | F18: 17.Kusum | G18: 10 years | H18: F | I18: c-6
A19: 18.Sarfaraz | B19: 6 years | C19: M | D19: c-2 | F19: 18.Aasmen | G19: 10 years | H19: F | I19: c-5
A20: 19.Juni | B20: 6 years | C20: F | D20: c-2 | F20: 19.Kiswari | G20: 10 years | H20: F | I20: c-5
A21: 20.Khushboo(s) | B21: 6 years | C21: F | D21: c - kg | F21: 20.Aaisha | G21: 11 years | H21: F | I21: c-5
A22: 21.Mantajir | B22: 6 years | C22: M | D22: c-2 | F22: 21.Pamina | G22: 11 years | H22: F | I22: c-4
A23: 22.Khushbu(New) | B23: 6 years | C23: F | D23: no school | F23: 22.Ekra | G23: 11 years | H23: F | I23: c-4
F24: 23.sonam | G24: 11 years | H24: F | I24: c-4
A25: List of students(13-20 years) | F25: 24.Rosy | G25: 11 years | H25: F | I25: c-6
A26: 1.Sarmeen | B26: 13 years | C26: F | D26: c-7 | F26: 25.Musarat | G26: 11 years | H26: F | I26: c-5
A27: 2.Jubda | B27: 13 years | C27: F | D27: c-4 | F27: 26.Mahzabi | G27: 11 years | H27: F | I27: c-6
A28: 3.Padma | B28: 13 years | C28: F | D28: c-6 | F28: 27.Afjal | G28: 12 years | H28: M | I28: c-6
A29: 4.Abdulla | B29: 13 years | C29: M | D29: c-5 | F29: 28.Bushra | G29: 12 years | H29: F | I29: c-5
A30: 5.Pradeep | B30: 13 years | C30: M | D30: c-9
A31: 6.Gajanand | B31: 13 years | C31: M | D31: c-6
A32: 7.Sabiha | B32: 13 years | C32: F | D32: c-6
A33: 8.Pooja | B33: 13 years | C33: F | D33: c-7
A34: 9.Ashutosh | B34: 13 years | C34: M | D34: no school
A35: 10.Pinki | B35: 14 years | C35: F | D35: c-7
A36: 11. Vishal | B36: 14 years | C36: M | D36: c - 8(open school)
A37: 12.Aashish | B37: 15 years | C37: M | D37: c-9
A38: 13.Bhalu | B38: 18 years | C38: M | D38: c-11
A40: Total no. of children: | B40: 63
A41: No.of girls: | B41: 33
A42: No.of boys: | B42: 30

Sheet Budget 14
B2: POPULAR EDUCATION AND ACTION CENTRE
B3: BUDGET FOR NAVJAGRITI COLLECTIVE EDUCATIONAL PROGRAMME- April 1, 2014 to March 31, 2015
L4: 1 USD = INR 60
A5: S.No. | B5: BUDGET ITEMS | C5: Physical | D5: Unit | E5: No. of | F5: Unit | G5: Total | H5: Total | I5: 2013 | J5: % increase | K5: 2013 | L5: % increase | M5: Remarks
C6: Requirement | D6: Defination | E6: Unit | F6: Cost | G6: (in INR) | H6: (in US $) | I6: (14 mnths) | J6: (14 mnths) | K6: (12 mnths) | L6: (12 mnths)
A7: A | B7: PROGRAMME COSTS
A8: 1 | B8: Educational Material | C8: 51 | D8: month | E8: 12 | F8: 50 | G8: =+C8*E8*F8 -> 30600 | H8: =+G8/60 -> 510 | I8: 29400 | J8: =((G8-I8)/I8)*100 -> 4.081632653 | K8: =(I8/14)*12 -> 25200 | L8: =((G8-K8)/K8)*100 -> 21.42857143 | M8: out of the 63 children; 51 are going to school and 12 are non-schooling. 42 school children last year
B9: (paper, pen, pencil, sharpner, eraser etc. for 63 children) | C9: 12 | D9: month | E9: 12 | F9: 30 | G9: =+C9*E9*F9 -> 4320 | H9: =+G9/60 -> 72 | I9: 6300 | J9: =((G9-I9)/I9)*100 -> -31.42857143 | K9: =(I9/14)*12 -> 5400 | L9: =((G9-K9)/K9)*100 -> -20 | M9: 18 last year
A10: 2 | B10: Educational Trip (travel, food, venue, stationery, etc. for 51 children & fee for resource person) | C10: 51 | D10: Trip | E10: 2 | F10: 650 | G10: 66300 | H10: =+G10/60 -> 1105 | I10: 50000 | J10: =((G10-I10)/I10)*100 -> 32.6 | K10: 50000 | L10: =((G10-K10)/K10)*100 -> 32.6
A12: 3 | B12: Educational Workshop (travel, food, venue, stationery, etc. for 63 children & fee for resource person) | C12: 63 | D12: workshop | E12: 2 | F12: 350 | G12: 44100 | H12: =+G12/60 -> 735 | I12: 20000 | J12: =((G12-I12)/I12)*100 -> 120.5 | K12: 20000 | L12: =((G12-K12)/K12)*100 -> 120.5 | M12: Project completes 5 years this year and the staff plans some celebrations
A14: 4 | B14: Child Care Expenses (food, medician etc. for 63 children) | C14: 63 | D14: days | E14: 313 | F14: 17 | G14: 335223 | H14: =+G14/60 -> 5587.05 | I14: 332100 | J14: =((G14-I14)/I14)*100 -> 0.9403794038 | K14: 281700 | L14: =((G14-K14)/K14)*100 -> 19 | M14: Sundays has been excluded.Unit cost was 15 last year
A16: 5 | B16: Transportation (School Van) | C16: 1 | D16: month | E16: 12 | F16: 6000 | G16: 72000 | H16: =+G16/60 -> 1200 | I16: 70000 | J16: =((G16-I16)/I16)*100 -> 2.857142857 | K16: =(I16/14)*12 -> 60000 | L16: =((G16-K16)/K16)*100 -> 20
A17: 6 | B17: Education Expenses (51 children) | M17: Local contribution from Smart Cube & Gigraj Kishory Lal Chaaritable Trust
B18: - School Fees | C18: 51 | D18: month | E18: 12 | F18: 275 | G18: 168300 | H18: =+G18/60 -> 2805 | I18: 147000 | J18: =((G18-I18)/I18)*100 -> 14.48979592 | K18: =(I18/14)*12 -> 126000 | L18: =((G18-K18)/K18)*100 -> 33.57142857 | M18: 42 children last year
B19: - School Uniform | C19: 51 | D19: year | E19: 1 | F19: 550 | G19: 28050 | H19: =+G19/60 -> 467.5 | I19: 21000 | J19: =((G19-I19)/I19)*100 -> 33.57142857 | K19: 21000 | L19: =((G19-K19)/K19)*100 -> 33.57142857
A20: 7 | B20: Staff Salaries & Honorarium
B21: - Coordinator | C21: 1 | D21: month | E21: 12 | F21: 6500 | G21: 78000 | H21: =+G21/60 -> 1300 | I21: 84000 | J21: =((G21-I21)/I21)*100 -> -7.142857143 | K21: =(I21/14)*12 -> 72000 | L21: =((G21-K21)/K21)*100 -> 8.333333333
B22: - Teacher (Full Time) | C22: 1 | D22: month | E22: 12 | F22: 8500 | G22: 102000 | H22: 1700 | I22: 112000 | J22: =((G22-I22)/I22)*100 -> -8.928571429 | K22: =(I22/14)*12 -> 96000 | L22: =((G22-K22)/K22)*100 -> 6.25
B23: - Teacher ( Part Time) | C23: 2 | D23: month | E23: 12 | F23: 3500 | G23: 84000 | H23: 1400 | I23: 84000 | J23: =((G23-I23)/I23)*100 -> 0 | K23: =(I23/14)*12 -> 72000
B24: - Teacher (Coaching Centre) | C24: 1 | D24: month | E24: 12 | F24: 3900 | G24: 46800 | H24: 780 | I24: NA | J24: NA | K24: NA | L24: NA | M24: Local contribution from Round Table
B25: - Field Teacher (Activities) | C25: 1 | D25: month | E25: 12 | F25: 2500 | G25: 30000 | H25: 500 | I25: 28000 | J25: =((G25-I25)/I25)*100 -> 7.142857143 | K25: =(I25/14)*12 -> 24000 | L25: =((G25-K25)/K25)*100 -> 25
B26: - Care-taker | C26: 1 | D26: month | E26: 12 | F26: 3500 | G26: 42000 | H26: 700 | I26: 49000 | J26: =((G26-I26)/I26)*100 -> -14.28571429 | K26: =(I26/14)*12 -> 42000 | L26: =((G26-K26)/K26)*100 -> 0
A27: B | B27: ADMINISTRATIVE COSTS
A28: 1 | B28: Office Coordinator/Accounts | C28: 1 | D28: lumpsum | E28: 1 | F28: 20000 | G28: 20000 | H28: =+G28/60 -> 333.3333333 | I28: 84000 | J28: =((G28-I28)/I28)*100 -> -76.19047619 | K28: =(I28/14)*12 -> 72000 | L28: =((G28-K28)/K28)*100 -> -72.22222222
A29: 2 | B29: Office Rent & Electricity | C29: 1 | D29: month | E29: 12 | F29: 16500 | G29: 198000 | H29: =+G29/60 -> 3300 | I29: 231000 | J29: =((G29-I29)/I29)*100 -> -14.28571429 | K29: =(I29/14)*12 -> 198000 | L29: =((G29-K29)/K29)*100 -> 0
A30: 3 | B30: Local Travel | C30: 1 | D30: month | E30: 12 | F30: 2500 | G30: 30000 | H30: =+G30/60 -> 500 | I30: 35000 | J30: =((G30-I30)/I30)*100 -> -14.28571429 | K30: =(I30/14)*12 -> 30000 | L30: =((G30-K30)/K30)*100 -> 0
A31: 4 | B31: Communication & Postage (phone, internet, fax, mobile, postal) | C31: 1 | D31: month | E31: 12 | F31: 2500 | G31: 30000 | H31: =+G31/60 -> 500 | I31: 35000 | J31: =((G31-I31)/I31)*100 -> -14.28571429 | K31: =(I31/14)*12 -> 30000 | L31: =((G31-K31)/K31)*100 -> 0 | M31: Local contribution from Smart Cube & Gigraj Kishory Lal Chaaritable Trust
A33: 5 | B33: Printing & Stationery (pen, pencil, writing pad, stapler, pin paper etc.) | C33: 1 | D33: month | E33: 12 | F33: 2000 | G33: 24000 | H33: =+G33/60 -> 400 | I33: 28000 | J33: =((G33-I33)/I33)*100 -> -14.28571429 | K33: =(I33/14)*12 -> 24000 | L33: =((G33-K33)/K33)*100 -> 0 | M33: Local contribution from Smart Cube & Gigraj Kishory Lal Chaaritable Trust
B35: G. TOTAL | G35: =SUM(G8:G34) -> 1433693 | H35: =SUM(H8:H34) -> 23894.88333 | I35: 1445800 | J35: =((G35-I35)/I35)*100 -> -0.8373910638 | K35: =SUM(K8:K34) -> 1249300 | L35: =((G35-K35)/K35)*100 -> 14.75970544 | M35: Addition of 3 children, inflation rate around 6-7%
B37: Local Contribution From | F37: 2014 | H37: 2013
F38: INR | G38: USD | H38: INR
B39: - Smart Cube and Gigraj Kishory Lal Charitable Trust, New Delhi | F39: =+G18+G19+G31+G33 -> 250350 | G39: =F39/60 -> 4172.5 | H39: 231000
B40: - Round Table, New Delhi { item no. A7-teacher (coaching centre)} | F40: =G24 -> 46800 | G40: =F40/60 -> 780 | H40: NA
B41: Total Contribution | F41: =F39+F40 -> 297150 | G41: =F41/60 -> 4952.5 | H41: =H39 -> 231000
B42: Net amount requested from Asha for Education | F42: =+G35-F41 -> 1136543 | G42: =F42/60 -> 18942.38333 | H42: 1214800
C44: 2014 | D44: 2013
B45: Yearly budget per child | C45: =G35/63 -> 22757.03175 | D45: =I35/60 -> 24096.66667
B46: Monthly budget per child | C46: =C45/12 -> 1896.419312 | D46: =D45/14 -> 1721.190476

Sheet Sheet3
B8: Fellowship
B9: Vocational courses
